Cogmind - Beta 10.2 @@@ ROGUE MODE // 2021.08.03 @ 20:36:43 Player: Sanctumkeeper Result: Self-destructed Performance ------------- Evolutions (2) 1000 Regions Visited (5) 1000 Robots Destroyed (34) 170 Value Destroyed (984) 984 Prototype IDs (24) 480 Alien Tech Used (0) 0 Bonus (314) 314 TOTAL SCORE: 3948 Bonus ------- Follower Combat Kills 14 Aligned with FarCom 300 Cogmind --------- Core Integrity 213/550 Matter 285/300 Energy 44/140 System Corruption 0% Temperature Cool (9) Movement Core (1150) Ox22 Location -8/Materials Parts ------- > --- POWER (1) -------- Light Deuterium Engine > --- PROPULSION (3) --- (None) > --- UTILITY (5) ------ Medium Storage Unit Large Storage Unit Large Storage Unit Large Storage Unit > --- WEAPON (2) ------- Advanced EMP Blaster Mace > --- INVENTORY (26) --- Improved Hover Unit Improved Hover Unit Improved Hover Unit Improved Hover Unit Improved Heat Sink Visual Processing Unit Improved Terrain Scan Processor Peak State ------------ > --- POWER ------------ Light Nuclear Core > --- PROPULSION ------- Light Treads Light Treads Compact Wheel > --- UTILITY ---------- Medium Storage Unit Large Storage Unit Large Storage Unit Large Storage Unit > --- WEAPON ----------- Grenade Launcher Mace > --- INVENTORY -------- Light Deuterium Engine Light Nuclear Core Improved Hover Unit Improved Hover Unit Improved Hover Unit Improved Hover Unit Improved Heat Sink Visual Processing Unit Improved Terrain Scan Processor [Rating: 15] Favorites ----------- Power Ion Engine Engine Ion Engine Power Core Light Nuclear Core Propulsion Light Treads Treads Light Treads Leg Improved Aluminum Leg Wheel Wheel Utility Large Storage Unit Storage Large Storage Unit Weapon Light Assault Rifle Ballistic Gun Light Assault Rifle Launcher Grenade Launcher Impact Weapon Mace Build | -11 -10 -10 -10 -9 -8 ------- Run | Scr Mat Min Exi Min Mat Slots Evolved 4 | . . . . . 4 Power . | . . . . . . Propulsion 1 | . . . . . 1 Utility 3 | . . . . . 3 Weapon . | . . . . . . Parts Attached 37 | 6 6 4 1 2 18 Power 7 | 1 2 . . . 4 Engine 5 | 1 2 . . . 2 Core 2 | . . . . . 2 Reactor . | . . . . . . Propulsion 8 | 2 . . . 1 5 Treads 4 | 1 . . . 1 2 Leg 1 | . . . . . 1 Wheel 3 | 1 . . . . 2 Hover . | . . . . . . Flight . | . . . . . . Utility 5 | 1 2 . . . 2 Device . | . . . . . . Storage 5 | 1 2 . . . 2 Processor . | . . . . . . Hackware . | . . . . . . Protection . | . . . . . . Artifact . | . . . . . . Weapon 17 | 2 2 4 1 1 7 Energy Gun . | . . . . . . Energy Cannon . | . . . . . . Ballistic Gun 11 | 2 2 2 . 1 4 Ballistic Cannon . | . . . . . . Launcher 4 | . . 1 1 . 2 Special Weapon . | . . . . . . Impact Weapon 2 | . . 1 . . 1 Slashing Weapon . | . . . . . . Piercing Weapon . | . . . . . . Special Melee Weapon . | . . . . . . Unidentified Prototypes 1 | . . . . . 1 Parts Lost 23 | . 3 1 . 1 18 Power 5 | . 1 . . . 4 Propulsion 8 | . . . . 1 7 Utility . | . . . . . . Weapon 10 | . 2 1 . . 7 Highest Loss Streak 6 | . 3 1 . 1 6 Average Slot Usage (%) 91 | . 93 100 100 100 78 Engine 10 | . 14 14 14 14 3 Core 1 | . . . . . 5 Treads 14 | . 14 14 14 19 13 Leg 1 | . . . . . 3 Wheel 10 | . 14 14 14 9 1 Storage 27 | . 21 28 28 28 33 Ballistic Gun 21 | . 28 26 26 28 8 Launcher 1 | . . . 1 . 4 Impact Weapon 1 | . . 1 . . 4 Naked Turns . | . . . . . . Heaviest Build 66 | 10 39 40 41 39 66 Greatest Support 60 | 10 10 20 10 40 60 Greatest Overweight (x) 21 | . 3 3 4 3 21 Average Overweight (x) 2 | . 1 2 3 2 3 Largest Inventory Capacity 26 | 6 16 16 16 16 26 Average Capacity 16 | 5 11 16 16 16 23 Most Carried 16 | 4 16 15 15 16 15 Average Carried 11 | 2 9 14 15 15 10 Final Capacity 26 | 6 16 16 16 16 26 Final Carried 16 | 4 15 15 15 16 7 Class Distribution -------------------- 69% | Mutant 24% | Hauler-Mutant 6% | Scavenger-Mutant Dominant Class ---------------- Mutant | -10/Materials Mutant | -10/Mines Mutant | -10/Exiles Mutant | -9/Mines Hauler-Mutant | -8/Materials Resources | -11 -10 -10 -10 -9 -8 ----------- Run | Scr Mat Min Exi Min Mat Matter Collected 849 | 259 228 49 . 60 253 Remotely . | . . . . . . Salvage Created 1219 | . 450 73 . 98 598 Parts 77 | . 46 4 . 6 21 Haulers Intercepted 2 | . 2 . . . . Recyclers Shooed 2 | . . . . 1 1 Parts Field Recycled . | . . . . . . Retrieved Matter . | . . . . . . Parts Self-Destructed . | . . . . . . Prevented . | . . . . . . Kills | -11 -10 -10 -10 -9 -8 ------- Run | Scr Mat Min Exi Min Mat Combat Hostiles Destroyed 27 | . 12 2 . 2 11 Guns 23 | . 12 2 . 2 7 AOE 3 | . . . . . 3 Classes Destroyed 7 | . 5 . . 1 1 Hauler 2 | . 2 . . . . Recycler 2 | . . . . 1 1 Operator 1 | . 1 . . . . Watcher 2 | . 1 . . . 1 Swarmer 8 | . 6 . . 2 . Grunt 17 | . 6 2 . . 9 Duelist 2 | . . . . . 2 Best Kill Streak 8 | . 8 1 . 3 5 Combat Bots Only 8 | . 8 1 . 2 6 Max Kills in Single Turn 1 | . 1 1 . 1 1 Gunslinging . | . . . . . . Exploded 1 | . . . . . 1 Melee . | . . . . . . Uniques/NPCs Destroyed . | . . . . . . Combat | -11 -10 -10 -10 -9 -8 -------- Run | Scr Mat Min Exi Min Mat Damage Taken 2607 | . 547 61 . 95 1904 Core 411 | . 68 . . 6 337 Absorbed by Shields . | . . . . . . Core Remaining (%) 85 | 100 . . . 70 . Volleys Fired 139 | . 58 5 5 6 65 Largest 2 | . 2 2 2 2 2 Hottest 40 | . 40 40 40 40 40 Shots Fired 260 | . 116 10 9 12 113 Gun 252 | . 116 10 8 12 106 Cannon . | . . . . . . Launcher 8 | . . . 1 . 7 Special . | . . . . . . Kinetic 252 | . 116 10 8 12 106 Thermal . | . . . . . . Explosive 7 | . . . 1 . 6 Electromagnetic 1 | . . . . . 1 Robot Hit Streak 17 | . 9 5 . 5 17 Robot Miss Streak 6 | . 6 2 . 1 2 Penetration Max . | . . . . . . Secondary Targets 1 | . 1 . . . . Max Gunslinging Chain 1 | . 1 . . . . Shots Hit Robots 188 | . 71 6 . 10 101 Core Hits 79 | . 28 6 . 5 40 Critical Hits 2 | . 2 . . . . Critical Kills 1 | . 1 . . . . Critical Parts Destroyed 1 | . 1 . . . . Melee Attacks 29 | . . 13 . . 16 Impact 29 | . . 13 . . 16 Slashing . | . . . . . . Piercing . | . . . . . . Sneak Attacks 1 | . . . . . 1 Combat Hostiles . | . . . . . . Follow-up Attacks . | . . . . . . Damage Inflicted 2315 | . 682 67 . 97 1469 Guns 1450 | . 682 48 . 85 635 Cannons . | . . . . . . Explosions 570 | . . . . . 570 Melee 264 | . . . . . 264 Ramming 31 | . . 19 . 12 . Kinetic 1450 | . 682 48 . 85 635 Thermal . | . . . . . . Explosive 476 | . . . . . 476 Electromagnetic 94 | . . . . . 94 Impact 264 | . . . . . 264 Slashing . | . . . . . . Piercing . | . . . . . . Highest Corruption 3 | . 3 3 3 3 . Average Corruption 2 | . 2 3 3 3 . Corruption Purged . | . . . . . . Effects 16 | . . 9 5 2 . Message Errors 5 | . . 2 2 1 . Matter Fused 1 | . . 1 . . . Heat Flow Errors 2 | . . 2 . . . Data Loss (minor) 5 | . . 3 1 1 . Targeting Errors 3 | . . 1 2 . . Overload Shots . | . . . . . . Overflow Damage 71 | . . . . . 71 Projectiles . | . . . . . . Explosions 23 | . . . . . 23 Melee 48 | . . . . . 48 Knockbacks 1 | . . . . . 1 Impact 1 | . . . . . 1 Kinetic . | . . . . . . Secondary . | . . . . . . Self-Inflicted Damage 26 | . . . . . 26 Shots 1 | . . . . . 1 Rammed 5 | . . 4 . 1 . Targets Rammed 5 | . . 4 . 1 . Kicked . | . . . . . . Crushed . | . . . . . . Highest Temperature 228 | . 15 228 . . 6 Average Temperature 30 | . 6 100 . . 3 Received Heat Transfer 954 | . 192 33 . . 729 Siege Activations . | . . . . . . Robots Corrupted . | . . . . . . Combat Hostiles . | . . . . . . Parts Fried 3 | . . . . . 3 Impact Corruptions 4 | . . . . . 4 Robots Melted . | . . . . . . Combat Hostiles . | . . . . . . Parts Melted . | . . . . . . Heat Transferred . | . . . . . . Parts Sabotaged . | . . . . . . Parts Stolen . | . . . . . . Parts Stripped . | . . . . . . Power Chain Reactions . | . . . . . . Missiles Intercepted . | . . . . . . Alert | -11 -10 -10 -10 -9 -8 ------- Run | Scr Mat Min Exi Min Mat Peak Influence 378 | . 378 131 . 73 280 Initial 76 | . . 76 . . 27 Average 138 | . 229 107 . 28 103 Maximum Alert Level 1 | . 1 . . . 1 Low Security (%) 81 | 100 55 100 . 100 89 Level 1 18 | . 44 . . . 10 Level 2 . | . . . . . . Level 3 . | . . . . . . Level 4 . | . . . . . . Level 5 . | . . . . . . High Security . | . . . . . . Max Security . | . . . . . . Squads Dispatched 2 | . 1 . . . 1 Investigation . | . . . . . . Extermination . | . . . . . . Reinforcement 2 | . 1 . . . 1 Assault . | . . . . . . Garrison . | . . . . . . Intercept . | . . . . . . Construction Impeded . | . . . . . . Haulers Reinforced . | . . . . . . Stealth | -11 -10 -10 -10 -9 -8 --------- Run | Scr Mat Min Exi Min Mat Distress Signals 4 | . 3 . . . 1 Communications Jammed . | . . . . . . Distress Signals . | . . . . . . Times Spotted 61 | . 25 3 . 4 29 Peak Tracking Total 9 | . 6 2 9 3 6 Tactical Retreats 8 | . 2 1 . . 5 Traps | -11 -10 -10 -10 -9 -8 ------- Run | Scr Mat Min Exi Min Mat Traps Triggered 2 | . 2 . . . . Indirectly . | . . . . . . Trap Hack Attempts . | . . . . . . Triggered . | . . . . . . Disarmed . | . . . . . . Reprogrammed . | . . . . . . Reused . | . . . . . . Traps Extracted . | . . . . . . Installed . | . . . . . . Triggered . | . . . . . . Machines | -11 -10 -10 -10 -9 -8 ---------- Run | Scr Mat Min Exi Min Mat Machines Disabled 2 | . . . 1 . 1 Max in Single Turn 1 | . . . 1 . 1 Machines Sabotaged . | . . . . . . Garrisons Compromised . | . . . . . . Overloaded Fab Kills . | . . . . . . Fab Network Shutdowns . | . . . . . . Hacking | -11 -10 -10 -10 -9 -8 --------- Run | Scr Mat Min Exi Min Mat Machines Accessed 8 | . 4 . 2 1 1 Terminals 6 | . 4 . . 1 1 Fabricators . | . . . . . . Repair Stations . | . . . . . . Recycling Units . | . . . . . . Scanalyzers . | . . . . . . Garrison Access . | . . . . . . Total Hacks 16 | . 10 . 2 1 3 Successful 12 | . 8 . 2 1 1 Failed 4 | . 2 . . . 2 Catastrophic . | . . . . . . Database Lockouts . | . . . . . . Manual 14 | . 10 . 1 . 3 Terminals 14 | . 10 . . 1 3 Fabricators . | . . . . . . Repair Stations . | . . . . . . Recycling Units . | . . . . . . Scanalyzers . | . . . . . . Garrison Access . | . . . . . . Terminal Hacks 5 | . 2 . 2 1 . Record 1 | . . . 1 . . Robot Analysis 2 | . 2 . . . . Zone Layout 1 | . . . . 1 . EX-Prototype ID Bank 1 | . . . 1 . . Fabricator Hacks . | . . . . . . Repair Station Hacks . | . . . . . . Recycling Unit Hacks . | . . . . . . Scanalyzer . | . . . . . . Garrison Access Hacks . | . . . . . . Unauthorized Hacks 7 | . 6 . . . 1 Terminals 7 | . 6 . . . 1 Track 1 | . 1 . . . . Botnet 4 | . 3 . . . 1 Operators 2 | . 2 . . . . Fabricators . | . . . . . . Repair Stations . | . . . . . . Recycling Units . | . . . . . . Scanalyzers . | . . . . . . Garrison Access . | . . . . . . Data Cores Recovered . | . . . . . . Used . | . . . . . . Hacking Detections 5 | . 3 . . 1 1 Full Trace Events . | . . . . . . Feedback Events . | . . . . . . Feedback Blocked . | . . . . . . Robot Schematics Acquired . | . . . . . . Robots Built . | . . . . . . Matter . | . . . . . . Time . | . . . . . . Total Robot Build Rating . | . . . . . . Part Schematics Acquired . | . . . . . . Parts Built . | . . . . . . Matter . | . . . . . . Time . | . . . . . . Total Part Build Rating . | . . . . . . Parts Repaired . | . . . . . . Time . | . . . . . . Parts Recycled . | . . . . . . Recycled Matter . | . . . . . . Retrieved Matter . | . . . . . . Retrieved Components . | . . . . . . Parts Scanalyzed . | . . . . . . Part Schematics Acquired . | . . . . . . Parts Damaged . | . . . . . . Bothacking | -11 -10 -10 -10 -9 -8 ------------ Run | Scr Mat Min Exi Min Mat Used RIF Installer . | . . . . . . Robots Hacked . | . . . . . . Non-combat . | . . . . . . Combat . | . . . . . . Robot Hacks Applied . | . . . . . . Relay Couplers Released . | . . . . . . Robots Rewired . | . . . . . . Allies Hacked . | . . . . . . Hacks Repelled . | . . . . . . Allies | -11 -10 -10 -10 -9 -8 -------- Run | Scr Mat Min Exi Min Mat Total Allies 1 | . . . . 1 . Largest Group 1 | . . . . 1 . Highest-Rated Group 31 | . . . . 31 . Highest-Rated Ally 31 | . . . . 31 . Total Orders . | . . . . . . Ally Attacks 6 | . . . . 6 . Total Damage 87 | . . . . 87 . Kills 2 | . . . . 2 . Allies Corrupted . | . . . . . . Allies Melted . | . . . . . . Intel | -11 -10 -10 -10 -9 -8 ------- Run | Scr Mat Min Exi Min Mat Robot Analysis Total 2 | . 2 . . . . Derelict Logs Recovered . | . . . . . . Drone Launches . | . . . . . . Drone Recoveries . | . . . . . . Exploration | -11 -10 -10 -10 -9 -8 ------------- Run | Scr Mat Min Exi Min Mat Turns Passed 2156 | 41 604 365 363 138 645 Spaces Moved 1307 | 37 410 268 316 82 194 Core 5 | 3 . . . . 2 Treads 110 | . . 2 . 21 87 Legs 72 | . . . . . 72 Wheels 1120 | 34 410 266 316 61 33 Hover . | . . . . . . Flight . | . . . . . . Fastest Speed 50 | 50 80 110 110 110 140 Average Speed 121 | 77 99 110 110 127 208 Slowest Speed 1100 | 80 110 180 120 180 1100 Overloaded Moves . | . . . . . . Propulsion Burnouts . | . . . . . . Robots Hopped . | . . . . . . Cave-ins Triggered . | . . . . . . Exploration Rate (%) 36 | 5 57 45 70 22 20 Regions Visited 5 Branch Regions 3 Pre-discovered Areas 1 | . . . 1 . . Known Exits Taken . | . . . . . . Unknown Exits Taken 5 | 1 1 1 1 1 . Scrap Searched . | . . . . . . Spaces Dug . | . . . . . . Terrain Destroyed 15 | . . . 4 . 11 Melee . | . . . . . . Projectile . | . . . . . . AOE 15 | . . . 4 . 11 Terrain Rammed . | . . . . . . Walls Destroyed . | . . . . . . Machines Disabled . | . . . . . . Actions | -11 -10 -10 -10 -9 -8 --------- Run | Scr Mat Min Exi Min Mat Total 1603 | 46 509 304 321 105 318 Wait 56 | . 14 10 . 13 19 Move 1302 | 36 409 267 315 81 194 Hop . | . . . . . . Pick Up 30 | 4 17 1 . 2 6 Fast Attach 10 | 6 1 . . . 3 Attach 20 | . 3 1 . 1 15 Detach . | . . . . . . Swap 7 | . 2 3 1 1 . Drop 5 | . 5 . . . . Fire 139 | . 58 5 5 6 65 Melee 29 | . . 13 . . 16 Ram . | . . . . . . Kick . | . . . . . . Crush 5 | . . 4 . 1 . Escape Stasis . | . . . . . . Rewire . | . . . . . . Trap . | . . . . . . Miscellaneous . | . . . . . . Route ------- -11/Scrapyard -10/Materials (discovered 3 exits: [*Mat x2] / [*Min]) -10/Mines (discovered 2 exits: [*Mat] / *Exi) -10/Exiles -9/Mines -8/Materials History --------- Turn | Location | Event 21 | -11/Scrapyard | Discovered new exit (range 15) 42 | -11/Scrapyard | Entered Materials 244 | -10/Materials | Lost 3 parts (1p2w) 255 | -10/Materials | Destroyed 8 combat bots 304 | -10/Materials | Discovered new exit (range 8) 311 | -10/Materials | Build established: Mutant 405 | -10/Materials | Discovered new exit (range 16) 577 | -10/Materials | Discovered new exit (range 8) 646 | -10/Materials | Entered Mines 664 | -10/Mines | Met a Derelict bent on vengeance 739 | -10/Mines | Deemed a non-threat by the Exiles lab entrance 843 | -10/Mines | Discovered new exit (range 6) 900 | -10/Mines | Excavation squad dispatched 900 | -10/Mines | A large section of the Mines collapsed 1006 | -10/Mines | Discovered new exit (range 5) 1011 | -10/Mines | Entered Exiles 1038 | -10/Exiles | Met 8R-AWN 1055 | -10/Exiles | Met EX-HEX 1110 | -10/Exiles | Met EX-DEC 1131 | -10/Exiles | Learned location of Zion (-7) 1208 | -10/Exiles | Met EX-BIN 1224 | -10/Exiles | Aligned with FarCom system 1225 | -10/Exiles | Given EX-Vault access code 1250 | -10/Exiles | Opened EX-Vault 1275 | -10/Exiles | Warned to stay clear of 0b10 Research branches 1346 | -10/Exiles | Attacked by the Exiles 1365 | -10/Exiles | Discovered new exit (range 10) 1374 | -10/Exiles | Entered Mines 1394 | -9/Mines | Received a Mining Laser from a helpful Derelict 1496 | -9/Mines | Discovered new exit (range 9) 1512 | -9/Mines | Entered Materials 1512 | -8/Materials | Evolved 4 slots: Propulsion x1, Utility x3 1656 | -8/Materials | Lost 4 parts (1p1n2w) 1853 | -8/Materials | Lost 6 parts (1p1n4w) 1894 | -8/Materials | Lost 4 parts (1p3n) 2026 | -8/Materials | Build established: Hauler-Mutant 2152 | -8/Materials | Core integrity fell below 50% 2157 | -8/Materials | Self-destructed Last Messages --------------- 01926_ K-01 Serf collects debris. 01940_ O-16 Technician: "IFF HANDSHAKE FAILED. SECURING TERMINAL." 01942_ O-16 Technician uses terminal to summon reinforcements. 01942_ ALERT: Hostiles spotted, dispatching reinforcements to Terminal M001. 01942_ O-16 Technician locks terminal. 01950_ K-01 Serf cleans the Terminal. 01975_ K-01 Serf collects debris. 02090_ Acquired Wheel. 02129_ Acquired Prototype Launcher. 02148_ Destroyed Heat Sink. 02148_ Y-45 Defender system corrupted by crushing effect. 02148_ Grenade Launcher destroyed. 02153_ Identified Adv. EMP Blaster. 02153_ Lgt. Nuclear Core destroyed. 02154_ Repair Station disabled. 02154_ Wheel destroyed. 02154_ Destroyed Wheel. 02154_ Imp. Aluminum Leg destroyed. 02154_ Destroyed Imp. Aluminum Leg. Map ----- +----------------------------------------------------+ | ??????????????????????????????? | | ??????????????????????????????? | | ??????????????????????????????? | | ??????????????????????????????? | | ??????????????????????????????? | | ??????????????????????????????? | | ??????????????????????????????? | | ??????????????????????????????? | | ??????????????????????????????? | | ??????????????????????????????? | | ??????????????????????????????? | | ??????????????????????????????? | | ??????????????????????????????? | | ??????????????????????????????? | | ??????????????????????????????? | | ??????????????????????????????? | | ??????????????????????????????? | | ??????????????????????????????? | | ??????????????????#####+####### | | ??????????????????? # !* # | | ?????????????????????# # !* # | | ?????????????????????# + # | | ????##+#????########## # g # | | ##### #####T## #gg # | | !!**# # # | | !!**# #@ # | | # "T" ### ##Y##### | | # ###+#######? | | % ! # #? | | # #? | | ########## # #? | | ] # # #? | | "" ! " # # #? | | "" T + """ # #? | | "" " # """ + #? | | # """ # #? | | ######+#?# ########+###? | | ????## ### [ # ! ! # #??? | | #?### """ + # #??? | | """ # """ # #??? | | #####/##### """ # """ # #??? | | # # !# """ # #??? | | ? """ + # + #??? | | ? """"" ##T# ######## #??? | | ??? """"" #### ######## #??? | | ????""""" #??# #??? | | ???? """ #??###############??? | | ???? ????????????????????? | | ???? ????????????????????? | | ?????#####????????????????????? | +----------------------------------------------------+ Best States ------------- Heat Dissipation 31 Energy Generation 14 Energy Capacity 250 Matter Stores 300 Matter Capacity 300 Sight Range 16 Terrain Scan Density 10 Evasion (%) 44 Recoil Reduction 3 Item Schematics ----------------- None Robot Schematics ------------------ None Fabricated ------------ Nothing Alien Tech Used ----------------- None Achievements -------------- None Challenges ------------ None Game ------ Seed FieldDisruptionCompactor Manual? 0 Play Time 00:18:28 Cumulative 177.2 hours Start 2021.08.03 @ 20:22:26 End 2021.08.03 @ 20:36:43 Sessions 1 Manual Loads 0 Difficulty Rogue Special Mode None Game No. 132 Rogue 132 Adventurer 0 Explorer 0 Win Type - Total 6 Types 5/0/0/0/0/0/0/1/0 Lore% 81 Gallery% 70 Achievement% 58 Wizard Run 0 Options --------- ASCII 0 Keyboard 1 Movement Arrows Keybinds 0 Fullscreen 1 Font 18/SmallcapsGlow Map View 76x50 Tactical HUD 1 Map Filters NONE Filters NONE Steam 1 RUN: e0459862-0282-4264-bb4b-532579309a0e